fUSD/lending_fUSD_20250708
["ID","MTS","AMOUNT","RATE_DAILY","PERIOD"]
[370288694,1751937064623,-669.19,0.00031232,7]
[370288695,1751937064633,-801.83,0.00031232,7]
[370288696,1751937064642,-460.0,0.00031232,7]
[370288697,1751937064652,-487.73,0.00031232,7]
[370288698,1751937064661,-177.30743478,0.00031232,7]
[370288699,1751937064981,-401.45256522,0.00031232,7]
[370288700,1751937064990,-460.0,0.00031232,7]
[370288701,1751937065001,-531.48,0.00031232,7]
[370288702,1751937065010,-460.0,0.00031232,7]
[370288703,1751937065019,-873.34271662,0.00031232,7]
[370288704,1751937065034,-460.0,0.0003041,7]
[370288705,1751937065044,-409.84728338,0.00031232,7]
[370288706,1751937065053,-460.0,0.00031232,7]
[370288707,1751937065063,-632.05,0.00031232,7]
[370288708,1751937065073,-484.59,0.00031232,7]
[370288709,1751937065082,-460.0,0.00031232,7]
[370288710,1751937065091,-460.0,0.00031232,7]
[370288711,1751937065100,-2393.98,0.00031232,7]
[370288712,1751937065109,-151.0,0.00031232,7]
[370288713,1751937065118,-460.0,0.00031232,7]
[370288714,1751937065127,-1126.56,0.00031232,7]
[370288715,1751937065136,-460.0,0.00031232,7]
[370288716,1751937065145,-1394.09,0.00031232,7]
[370288717,1751937065155,-211.988939,0.00031232,7]
[370288718,1751937065164,-460.0,0.00031232,7]
[370288719,1751937065174,-810.89377762,0.00031232,7]
[370288720,1751937065424,-460.0,0.00030136,7]
[370288721,1751937065434,-460.0,0.0003041,7]
[370288722,1751937065444,-460.0,0.0003041,7]
[370288723,1751937065453,-460.0,0.00030684,7]
[370288724,1751937065462,-561.44303562,0.00030684,7]
[370288725,1751937065474,-852.78,0.00030958,7]
[370288726,1751937065483,-324.53622238,0.00031232,7]
[370288727,1751937065494,-460.0,0.00031232,7]
[370288728,1751937065504,-198.15,0.00031232,7]
[370288729,1751937065514,-530.83,0.00031232,7]
[370288730,1751937065524,-2562.25,0.00031232,7]
[370288731,1751937065533,-527.88,0.00031232,7]
[370288732,1751937065543,-674.96,0.00031232,7]
[370288733,1751937065552,-460.0,0.00031232,7]
[370288734,1751937065566,-460.0,0.00031232,7]
[370288735,1751937065575,-460.0,0.00031232,7]
[370288736,1751937065585,-725.59,0.00031232,7]
[370288737,1751937065596,-503.86,0.00031232,7]
[370288738,1751937065606,-1360.3,0.00031232,7]
[370288739,1751937065615,-460.0,0.00031232,7]
[370288740,1751937065625,-460.0,0.00031232,7]
[370288741,1751937065635,-460.0,0.00031232,7]
[370288742,1751937065645,-460.0,0.00031232,7]
[370288743,1751937065655,-460.0,0.00031232,7]
[370288744,1751937065665,-460.0,0.00031232,7]
[370288745,1751937065674,-460.0,0.00031232,7]
[370288746,1751937065685,-460.0,0.00031232,7]
[370288747,1751937065695,-460.0,0.00031232,7]
[370288748,1751937065707,-460.0,0.00031232,7]
[370288749,1751937065717,-460.0,0.00031232,7]
[370288750,1751937065726,-536.8,0.00031232,7]
[370288751,1751937065736,-477.12284238,0.00031232,7]
[370288752,1751937065746,-472.62,0.00031232,7]
[370288753,1751937065756,-151.0,0.00031232,7]
[370288754,1751937065766,-550.05,0.00031232,7]
[370288755,1751937065775,-460.0,0.00031232,7]
[370288756,1751937065784,-460.0,0.00031232,7]
[370288757,1751937065794,-460.0,0.00031232,7]
[370288758,1751937065803,-460.0,0.00031232,7]
[370288759,1751937065813,-460.0,0.00031232,7]
[370288760,1751937065822,-460.0,0.00031232,7]
[370288761,1751937065832,-460.0,0.00031232,7]
[370288762,1751937065842,-583.04,0.00031232,7]
[370288763,1751937065852,-756.09,0.00031232,7]
[370288764,1751937065862,-151.0,0.00031232,7]
[370288765,1751937065872,-460.0,0.00031232,7]
[370288766,1751937065882,-460.0,0.00031232,7]
[370288767,1751937065891,-460.0,0.00031232,7]
[370288768,1751937065900,-460.0,0.00031232,7]
[370288769,1751937066079,-812.32,0.00031232,7]
[370288770,1751937066089,-1468.52,0.00031232,7]
[370288771,1751937066100,-599.84,0.00031232,7]
[370288772,1751937066109,-460.0,0.00031232,7]
[370288773,1751937066119,-460.0,0.00031232,7]
[370288774,1751937066129,-460.0,0.00031232,7]
[370288775,1751937066140,-1277.77,0.00031232,7]
[370288776,1751937066150,-1478.5,0.00031232,7]
[370288777,1751937066161,-460.0,0.00031232,7]
[370288778,1751937066172,-460.0,0.00031232,7]
[370288779,1751937066182,-460.0,0.00031232,7]
[370288780,1751937066192,-460.0,0.00031232,7]
[370288781,1751937066202,-687.25,0.00031232,7]
[370288782,1751937066211,-696.77,0.00031232,7]
[370288783,1751937066221,-460.0,0.00031232,7]
[370288784,1751937066231,-460.0,0.00031232,7]
[370288785,1751937066241,-460.0,0.00031232,7]
[370288786,1751937066250,-9693.63,0.00031232,7]
[370288787,1751937066260,-460.0,0.00031232,7]
[370288788,1751937066269,-460.0,0.00031232,7]
[370288789,1751937066279,-2181.97,0.00031232,7]
[370288790,1751937066288,-460.17,0.00031232,7]
[370288791,1751937066298,-926.03,0.00031232,7]
[370288792,1751937066307,-460.0,0.00031232,7]
[370288793,1751937066317,-991.75,0.00031232,7]
[370288794,1751937066327,-460.0,0.00031232,7]
[370288795,1751937066338,-585.71,0.00031232,7]
[370288796,1751937066350,-460.0,0.00031232,7]
[370288797,1751937066360,-460.0,0.00031232,7]
[370288798,1751937066370,-300.0,0.00031232,2]
[370288799,1751937066380,-460.0,0.00031232,7]
[370288800,1751937066390,-151.0,0.00031232,7]
[370288801,1751937066400,-739.63,0.00031232,7]
[370288802,1751937066410,-644.33,0.00031232,7]
[370288803,1751937066425,-850.89,0.00031232,7]
[370288804,1751937066435,-460.0,0.00031232,7]
[370288805,1751937066446,-460.0,0.00031232,7]
[370288806,1751937066459,-564.52,0.00031232,7]
[370288807,1751937066471,-460.0,0.00031232,7]
[370288808,1751937066481,-460.0,0.00031232,7]
[370288809,1751937066492,-151.0,0.00031232,7]
[370288810,1751937066503,-460.0,0.00031232,7]
[370288811,1751937066513,-460.0,0.00031232,7]
[370288812,1751937066521,-151.0,0.00031232,7]
[370288813,1751937066531,-151.0,0.00031232,7]
[370288814,1751937066541,-1418.58,0.00031232,7]
[370288815,1751937066554,-460.0,0.00031232,7]
[370288816,1751937066564,-270.32,0.00031232,7]
[370288817,1751937066574,-681.54,0.00031232,7]
[370288818,1751937066584,-687.76,0.00031232,7]
[370288819,1751937066593,-460.0,0.00031232,7]
[370288820,1751937066603,-460.0,0.00031232,7]
[370288821,1751937066612,-460.0,0.00031232,7]
[370288822,1751937066621,-511.97,0.00031232,7]
[370288823,1751937066631,-615.76,0.00031232,7]
[370288824,1751937066641,-460.0,0.00031232,7]
[370288825,1751937066650,-473.71,0.00031232,7]
[370288826,1751937066660,-460.0,0.00031232,7]
[370288827,1751937066669,-536.17,0.00031232,7]
[370288828,1751937066679,-460.0,0.00031232,7]
[370288829,1751937066689,-1195.65,0.00031232,7]
[370288830,1751937066698,-709.33,0.00031232,7]
[370288831,1751937066708,-460.0,0.00031232,7]
[370288832,1751937066717,-550.36,0.00031232,7]
[370288833,1751937066726,-151.0,0.00031232,7]
[370288834,1751937066736,-460.0,0.00031232,7]
[370288835,1751937066746,-577.54,0.00031232,7]
[370288836,1751937066756,-460.0,0.00031232,7]
[370288837,1751937066765,-460.0,0.00031232,7]
[370288838,1751937066775,-1669.86,0.00031232,7]
[370288839,1751937066785,-460.0,0.00031232,7]
[370288840,1751937066795,-460.0,0.00031232,7]
[370288841,1751937066804,-484.13,0.00031232,7]
[370288842,1751937066814,-460.0,0.00031232,7]
[370288843,1751937066823,-460.0,0.00031232,7]
[370288844,1751937066833,-888.97,0.00031232,7]
[370288845,1751937066843,-460.0,0.00031232,7]
[370288846,1751937066852,-523.29,0.00031232,7]
[370288847,1751937066861,-151.0,0.00031232,7]
[370288848,1751937066871,-460.0,0.00031232,7]
[370288849,1751937066881,-753.67,0.00031232,7]
[370288850,1751937066890,-151.0,0.00031232,7]
[370288851,1751937066900,-460.0,0.00031232,7]
[370288852,1751937066909,-783.83,0.00031232,7]
[370288853,1751937066918,-151.0,0.00031232,7]
[370288854,1751937066927,-594.53,0.00031232,7]
[370288855,1751937066937,-460.0,0.00031232,7]
[370288856,1751937066946,-628.54,0.00031232,7]
[370288857,1751937066956,-151.0,0.00031232,7]
[370288858,1751937066965,-460.0,0.00031232,7]
[370288859,1751937066974,-568.94,0.00031232,7]
[370288860,1751937066983,-828.38,0.00031232,7]
[370288861,1751937066992,-460.0,0.00031232,7]
[370288862,1751937067001,-460.0,0.00031232,7]
[370288863,1751937067011,-460.0,0.00031232,7]
[370288864,1751937067020,-301.235212,0.00031232,7]
[370288865,1751937067029,-460.0,0.00031232,7]
[370288866,1751937067039,-460.0,0.00031232,7]
[370288867,1751937067048,-151.600495,0.00031232,7]
[370288868,1751937067057,-460.0,0.00031232,7]
[370288869,1751937067067,-460.0,0.00031232,7]
[370288870,1751937067076,-460.0,0.00031232,7]
[370288871,1751937067085,-301.235212,0.00031232,7]
[370288872,1751937067095,-460.0,0.00031232,7]
[370288873,1751937067104,-6022.11,0.00031232,7]
[370288874,1751937067113,-852.78,0.00031232,7]
[370288875,1751937067123,-242392.40684348,0.00031232,2]
[370288876,1751937067132,-2500.07206869,0.00031248,2]
[370288877,1751937067142,-200.0,0.00031268,2]
[370288878,1751937067152,-1000.0,0.00031454,2]
[370288879,1751937067161,-1000.0,0.00031454,2]
[370288880,1751937067171,-1000.0,0.00031454,2]
[370288881,1751937067180,-272.59601641,0.00031454,2]
[370288882,1751937067189,-207.4,0.00031454,2]
[370288883,1751937067199,-4169.08984202,0.00031454,2]
[370288884,1751937067208,-164.27811232,0.00031454,2]
[370288885,1751937067217,-300.0,0.00031454,2]
[370288886,1751937067226,-300.0,0.00031454,2]
[370288887,1751937067236,-300.0,0.00031454,2]
[370288888,1751937067245,-300.0,0.00031454,2]
[370288889,1751937067254,-300.0,0.00031454,2]
[370288890,1751937067264,-300.0,0.00031454,2]
[370288891,1751937067273,-300.0,0.00031454,2]
[370288892,1751937067283,-300.0,0.00031454,2]
[370288893,1751937067301,-300.0,0.00031454,2]
[370288894,1751937067315,-300.0,0.00031454,2]
[370288895,1751937067324,-300.0,0.00031454,2]
[370288896,1751937067333,-300.0,0.00031454,2]
[370288897,1751937067343,-300.0,0.00031454,2]
[370288898,1751937067352,-300.0,0.00031454,2]
[370288899,1751937067361,-300.0,0.00031454,2]
[370288900,1751937067370,-300.0,0.00031454,2]
[370288901,1751937067380,-460.0,0.00031504,7]
[370288902,1751937067389,-460.0,0.00031504,7]
[370288903,1751937067399,-500.0,0.00031505,7]
[370288904,1751937067408,-500.0,0.00031505,7]
[370288905,1751937067418,-151.0,0.00031505,7]
[370288906,1751937067432,-151.67464,0.00031505,7]
[370288907,1751937067441,-151.0,0.00031505,7]
[370288908,1751937067450,-151.0,0.00031505,7]
[370288909,1751937067459,-500.0,0.00031505,7]
[370288910,1751937067470,-2459.85,0.00031505,7]
[370288911,1751937067479,-2459.85,0.00031505,7]
[370288912,1751937067488,-2459.85,0.00031505,7]
[370288913,1751937067498,-2459.85,0.00031505,7]
[370288914,1751937067508,-2459.85,0.00031505,7]
[370288915,1751937067517,-2459.85,0.00031505,7]
[370288916,1751937067527,-2459.85,0.00031505,7]
[370288917,1751937067536,-500.0,0.00031505,7]
[370288918,1751937067546,-740.56,0.00031505,7]
[370288919,1751937067556,-740.56,0.00031505,7]
[370288920,1751937067566,-740.56,0.00031505,7]
[370288921,1751937067576,-740.56,0.00031505,7]
[370288922,1751937067585,-740.56,0.00031505,7]
[370288923,1751937067595,-740.56,0.00031505,7]
[370288924,1751937067605,-740.56,0.00031505,7]
[370288925,1751937067615,-460.0,0.00031506,7]
[370288926,1751937067624,-201.29,0.00031506,7]
[370288927,1751937067633,-189.694103,0.00031506,7]
[370288928,1751937067643,-150.139727,0.00031506,7]
[370288929,1751937067653,-460.0,0.00031506,7]
[370288930,1751937067662,-226.04,0.00031506,7]
[370288931,1751937067671,-263.55,0.00031506,7]
[370288932,1751937067681,-460.0,0.00031506,7]
[370288933,1751937067691,-301.82,0.00031506,7]
[370288934,1751937067700,-619.79,0.00031506,7]
[370288935,1751937067710,-460.0,0.00031506,7]
[370288936,1751937067719,-460.0,0.00031506,7]
[370288937,1751937067728,-460.0,0.00031506,7]
[370288938,1751937067738,-460.0,0.00031506,7]
[370288939,1751937067747,-495.97,0.00031506,7]
[370288940,1751937067757,-460.0,0.00031506,7]
[370288941,1751937067767,-460.0,0.00031506,7]
[370288942,1751937067776,-460.0,0.00031506,7]
[370288943,1751937067785,-871.96,0.00031506,7]
[370288944,1751937067795,-460.0,0.00031506,7]
[370288945,1751937067804,-460.0,0.00031506,7]
[370288946,1751937067813,-460.0,0.00031506,7]
[370288947,1751937067823,-237.99500176,0.00031506,7]
[370288948,1751937067832,-460.0,0.00031506,7]
[370288949,1751937067841,-622.31,0.00031506,7]
[370288950,1751937067851,-597.54,0.00031506,7]
[370288951,1751937067861,-460.0,0.00031506,7]
[370288952,1751937067871,-460.0,0.00031506,7]
[370288953,1751937067880,-460.0,0.00031506,7]
[370288954,1751937067890,-460.0,0.00031506,7]
[370288955,1751937067899,-460.0,0.00031506,7]
[370288956,1751937067909,-556.86,0.00031506,7]
[370288957,1751937067918,-151.0,0.00031506,7]
[370288958,1751937067927,-460.0,0.00031506,7]
[370288959,1751937067937,-460.0,0.00031506,7]
[370288960,1751937067947,-460.0,0.00031506,7]
[370288961,1751937067956,-151.0,0.00031506,7]
[370288962,1751937067967,-460.0,0.00031506,7]
[370288963,1751937067975,-460.0,0.00031506,7]
[370288964,1751937067985,-538.93,0.00031506,7]
[370288965,1751937067994,-460.0,0.00031506,7]
[370288966,1751937068003,-496.18,0.00031506,7]
[370288967,1751937068014,-460.0,0.00031506,7]
[370288968,1751937068024,-460.0,0.00031506,7]
[370288969,1751937068034,-301.55641535,0.00031506,7]
[370288970,1751937068043,-460.0,0.00031506,7]
[370288971,1751937068053,-460.0,0.00031506,7]
[370288972,1751937068062,-460.0,0.00031506,7]
[370288973,1751937068072,-661.07,0.00031506,7]
[370288974,1751937068082,-561.47,0.00031506,7]
[370288975,1751937068092,-460.0,0.00031506,7]
[370288976,1751937068102,-460.0,0.00031506,7]
[370288977,1751937068111,-460.0,0.00031506,7]
[370288978,1751937068121,-460.0,0.00031506,7]
[370288979,1751937068130,-460.0,0.00031506,7]
[370288980,1751937068141,-460.0,0.00031506,7]
[370288981,1751937068151,-460.0,0.00031506,7]
[370288982,1751937068161,-460.0,0.00031506,7]
[370288983,1751937068171,-460.0,0.00031506,7]
[370288984,1751937068182,-460.0,0.00031506,7]
[370288985,1751937068192,-460.0,0.00031506,7]
[370288986,1751937068201,-673.52,0.00031506,7]
[370288987,1751937068211,-460.0,0.00031506,7]
[370288988,1751937068221,-351.63,0.00031506,7]
[370288989,1751937068231,-565.51,0.00031506,7]
[370288990,1751937068242,-460.0,0.00031506,7]
[370288991,1751937068252,-460.0,0.00031506,7]
[370288992,1751937068264,-460.0,0.00031506,7]
[370288993,1751937068274,-296.30040901,0.00031506,7]
[370288994,1751937068283,-151.0,0.00031506,7]
[370288995,1751937068293,-189.91,0.00031506,7]
[370288996,1751937068303,-460.0,0.00031506,7]
[370288997,1751937068312,-460.0,0.00031506,7]
[370288998,1751937068322,-460.0,0.00031506,7]
[370288999,1751937068331,-460.0,0.00031506,7]
[370289000,1751937068341,-460.0,0.00031506,7]
[370289001,1751937068351,-460.0,0.00031506,7]
[370289002,1751937068360,-460.0,0.00031506,7]
[370289003,1751937068370,-460.0,0.00031506,7]
[370289004,1751937068379,-577.04,0.00031506,7]
[370289005,1751937068389,-460.0,0.00031506,7]
[370289006,1751937068399,-460.0,0.00031506,7]
[370289007,1751937068409,-570.1,0.00031506,7]
[370289008,1751937068419,-947.95,0.00031506,7]
[370289009,1751937068432,-151.0,0.00031506,7]
[370289010,1751937068442,-460.0,0.00031506,7]
[370289011,1751937068452,-460.0,0.00031506,7]
[370289012,1751937068463,-151.0,0.00031506,7]
[370289013,1751937068475,-411.53686882,0.00031506,7]
[370289014,1751937068486,-460.0,0.00031506,7]
[370289015,1751937068497,-490.0,0.00031506,7]
[370289016,1751937068508,-221.09655886,0.00031506,7]
[370289017,1751937068518,-151.0,0.00031506,7]
[370289018,1751937068528,-510.4,0.00031506,7]
[370289019,1751937068540,-1507.82,0.00031506,7]
[370289020,1751937068550,-556.07,0.00031506,7]
[370289021,1751937068560,-151.0,0.00031506,7]
[370289022,1751937068570,-593.83,0.00031506,7]
[370289023,1751937068580,-460.0,0.00031506,7]
[370289024,1751937068590,-460.0,0.00031506,7]
[370289025,1751937068599,-582.95,0.00031506,7]
[370289026,1751937068608,-460.0,0.00031506,7]
[370289027,1751937068618,-647.74,0.00031506,7]
[370289028,1751937068628,-460.0,0.00031506,7]
[370289029,1751937068639,-510.92,0.00031506,7]
[370289030,1751937068649,-497.23,0.00031506,7]
[370289031,1751937068659,-460.0,0.00031506,7]
[370289032,1751937068669,-460.0,0.00031506,7]
[370289033,1751937068679,-460.0,0.00031506,7]
[370289034,1751937068821,-460.0,0.00031506,7]
[370289035,1751937068835,-663.74,0.00031506,7]
[370289036,1751937068847,-326.85,0.00031506,7]
[370289037,1751937068856,-775.04,0.00031506,7]
[370289038,1751937068866,-621.12,0.00031506,7]
[370289039,1751937068875,-460.0,0.00031506,7]
[370289040,1751937068885,-460.0,0.00031506,7]
[370289041,1751937068894,-460.0,0.00031506,7]
[370289042,1751937068904,-460.0,0.00031506,7]
[370289043,1751937068915,-524.52,0.00031506,7]
[370289044,1751937068924,-191.864133,0.00031506,7]
[370289045,1751937068934,-191.864133,0.00031506,7]
[370289046,1751937068943,-460.0,0.00031506,7]
[370289047,1751937068953,-490.82,0.00031506,7]
[370289048,1751937068964,-564.32,0.00031506,7]
[370289049,1751937068976,-460.0,0.00031506,7]
[370289050,1751937068986,-460.0,0.00031506,7]
[370289051,1751937068995,-580.37,0.00031506,7]
[370289052,1751937069004,-151.0,0.00031506,7]
[370289053,1751937069014,-495.61,0.00031506,7]
[370289054,1751937069023,-460.0,0.00031506,7]
[370289055,1751937069032,-482.67,0.00031506,7]
[370289056,1751937069041,-528.59,0.00031506,7]
[370289057,1751937069051,-468.15,0.00031506,7]
[370289058,1751937069060,-460.0,0.00031506,7]
[370289059,1751937069070,-460.0,0.00031506,7]
[370289060,1751937069079,-527.02,0.00031506,7]
[370289061,1751937069089,-460.0,0.00031506,7]
[370289062,1751937069098,-621.12,0.00031506,7]
[370289063,1751937069107,-1005.7,0.00031506,7]
[370289064,1751937069116,-460.0,0.00031506,7]
[370289065,1751937069125,-507.18,0.00031506,7]
[370289066,1751937069135,-460.0,0.00031506,7]
[370289067,1751937069144,-460.0,0.00031506,7]
[370289068,1751937069154,-151.0,0.00031506,7]
[370289069,1751937069163,-460.0,0.00031506,7]
[370289070,1751937069173,-460.0,0.00031506,7]
[370289071,1751937069182,-686.48,0.00031506,7]
[370289072,1751937069191,-1022.4,0.00031506,7]
[370289073,1751937069201,-151.0,0.00031506,7]
[370289074,1751937069211,-659.06,0.00031506,7]
[370289075,1751937069220,-460.0,0.00031506,7]
[370289076,1751937069230,-669.19,0.00031506,7]
[370289077,1751937069239,-801.83,0.00031506,7]
[370289078,1751937069249,-460.0,0.00031506,7]
[370289079,1751937069258,-487.73,0.00031506,7]
[370289080,1751937069268,-578.76,0.00031506,7]
[370289081,1751937069278,-460.0,0.00031506,7]
[370289082,1751937069287,-531.48,0.00031506,7]
[370289083,1751937069297,-460.0,0.00031506,7]
[370289084,1751937069306,-1283.19,0.00031506,7]
[370289085,1751937069315,-460.0,0.00031506,7]
[370289086,1751937069325,-632.05,0.00031506,7]
[370289087,1751937069334,-460.0,0.00031506,7]
[370289088,1751937069344,-460.0,0.00031506,7]
[370289089,1751937069353,-151.0,0.00031506,7]
[370289090,1751937069362,-2393.98,0.00031506,7]
[370289091,1751937069372,-460.0,0.00031506,7]
[370289092,1751937069382,-1126.56,0.00031506,7]
[370289093,1751937069391,-151.0,0.00031506,7]
[370289094,1751937069401,-460.0,0.00031506,7]
[370289095,1751937069410,-460.0,0.00031506,7]
[370289096,1751937069421,-1394.09,0.00031506,7]
[370289097,1751937069433,-1135.43,0.00031506,7]
[370289098,1751937069443,-402.36987978,0.00031506,7]
[370289099,1751937069452,-530.83,0.00031506,7]
[370289100,1751937069462,-2562.25,0.00031506,7]
[370289101,1751937069471,-527.88,0.00031506,7]
[370289102,1751937069480,-674.96,0.00031506,7]
[370289103,1751937069490,-171.822158,0.00031506,7]
[370289104,1751937069500,-460.0,0.00031506,7]
[370289105,1751937069511,-460.0,0.00031506,7]
[370289106,1751937069520,-460.0,0.00031506,7]
[370289107,1751937069530,-171.822158,0.00031506,7]
[370289108,1751937069542,-716.386919,0.00031506,7]
[370289109,1751937069552,-725.59,0.00031506,7]
[370289110,1751937069562,-503.86,0.00031506,7]
[370289111,1751937069573,-151.0,0.00031506,7]
[370289112,1751937069582,-1360.3,0.00031506,7]
[370289113,1751937069592,-460.0,0.00031506,7]
[370289114,1751937069604,-579.01473022,0.00031506,7]
[370289115,1751937069614,-460.0,0.00031506,7]
[370289116,1751937069623,-1498.882877,0.00031506,7]
[370289117,1751937069634,-460.0,0.00031506,7]
[370289118,1751937069645,-231.119279,0.00031506,7]
[370289119,1751937069654,-460.0,0.00031506,7]
[370289120,1751937069664,-1498.882877,0.00031506,7]
[370289121,1751937069674,-460.0,0.00031506,7]
[370289122,1751937069684,-460.0,0.00031506,7]
[370289123,1751937069694,-460.0,0.00031506,7]
[370289124,1751937069704,-151.0,0.00031506,7]
[370289125,1751937069714,-460.0,0.00031506,7]
[370289126,1751937069724,-151.0,0.00031506,7]
[370289127,1751937069733,-460.0,0.00031506,7]
[370289128,1751937069743,-460.0,0.00031506,7]
[370289129,1751937069754,-536.8,0.00031506,7]
[370289130,1751937069764,-472.62,0.00031506,7]
[370289131,1751937069774,-151.0,0.00031506,7]
[370289132,1751937069784,-550.05,0.00031506,7]
[370289133,1751937069794,-460.0,0.00031506,7]
[370289134,1751937069804,-460.0,0.00031506,7]
[370289135,1751937069814,-460.0,0.00031506,7]
[370289136,1751937069824,-460.0,0.00031506,7]
[370289137,1751937069833,-471.83612709,0.00031506,7]
[370289138,1751937069843,-460.0,0.00031506,7]
[370289139,1751937069853,-460.0,0.00031506,7]
[370289140,1751937069862,-583.04,0.00031506,7]
[370289141,1751937069872,-756.09,0.00031506,7]
[370289142,1751937069881,-151.0,0.00031506,7]
[370289143,1751937069891,-460.0,0.00031506,7]
[370289144,1751937069900,-215.79701217,0.00031506,7]
[370289145,1751937069909,-460.0,0.00031506,7]
[370289146,1751937069919,-532.05915418,0.00031506,7]
[370289147,1751937069929,-812.32,0.00031506,7]
[370289148,1751937069938,-1468.52,0.00031506,7]
[370289149,1751937069948,-599.84,0.00031506,7]
[370289150,1751937069959,-460.0,0.00031506,7]
[370289151,1751937069969,-460.0,0.00031506,7]
[370289152,1751937069980,-460.0,0.00031506,7]
[370289153,1751937069989,-1277.77,0.00031506,7]
[370289154,1751937069999,-460.0,0.00031506,7]
[370289155,1751937070009,-1478.5,0.00031506,7]
[370289156,1751937070019,-460.0,0.00031506,7]
[370289157,1751937070029,-460.0,0.00031506,7]
[370289158,1751937070038,-218.21244839,0.00031506,7]
[370289159,1751937070048,-687.25,0.00031506,7]
[370289160,1751937070057,-696.77,0.00031506,7]
[370289161,1751937070067,-360.29,0.00031506,7]
[370289162,1751937070075,-355.19,0.00031506,7]
[370289163,1751937070085,-460.0,0.00031506,7]
[370289164,1751937070094,-9693.63,0.00031506,7]
[370289165,1751937070103,-460.0,0.00031506,7]
[370289166,1751937070113,-460.0,0.00031506,7]
[370289167,1751937070122,-300.0,0.00031506,7]
[370289168,1751937070132,-2181.97,0.00031506,7]
[370289169,1751937070141,-460.17,0.00031506,7]
[370289170,1751937070151,-926.03,0.00031506,7]
[370289171,1751937070161,-460.0,0.00031506,7]
[370289172,1751937070171,-991.75,0.00031506,7]
[370289173,1751937070181,-460.0,0.00031506,7]
[370289174,1751937070191,-585.71,0.00031506,7]
[370289175,1751937070207,-460.0,0.00031506,7]
[370289176,1751937070221,-503.4,0.00031506,7]
[370289177,1751937070231,-300.0,0.00031506,2]
[370289178,1751937070240,-460.0,0.00031506,7]
[370289179,1751937070250,-151.0,0.00031506,7]
[370289180,1751937070260,-739.63,0.00031506,7]
[370289181,1751937070270,-644.33,0.00031506,7]
[370289182,1751937070280,-850.89,0.00031506,7]
[370289183,1751937070291,-460.0,0.00031506,7]
[370289184,1751937070300,-460.0,0.00031506,7]
[370289185,1751937070310,-564.52,0.00031506,7]
[370289186,1751937070320,-460.0,0.00031506,7]
[370289187,1751937070329,-460.0,0.00031506,7]
[370289188,1751937070339,-460.0,0.00031506,7]
[370289189,1751937070348,-151.0,0.00031506,7]
[370289190,1751937070358,-460.0,0.00031506,7]
[370289191,1751937070368,-151.0,0.00031506,7]
[370289192,1751937070377,-1418.58,0.00031506,7]
[370289193,1751937070387,-151.0,0.00031506,7]